[Event "*** Titled Tuesday Blitz"]
[Site "Chess.com"]
[Date "2018.05.01"]
[Round "4"]
[White "Al_Shima"]
[Black "JoachimBN"]
[Result "0-1"]
[WhiteElo "2403"]
[BlackElo "2562"]
[TimeControl "180+2"]
[EndTime "13:53:19 PDT"]
[Termination "JoachimBN won by resignation"]

1. b3 {[%clk 0:03:01.9]} 1... a5 {[%clk 0:02:17]} 2. a4 {[%clk 0:03:02.2]} 2...
Nf6 {[%clk 0:02:14.1]} 3. Bb2 {[%clk 0:03:03.5]} 3... g6 {[%clk 0:02:14.3]} 4.
Bxf6 {[%clk 0:03:04.7]} 4... exf6 {[%clk 0:02:16.2]} 5. c4 {[%clk 0:03:06]} 5...
d5 {[%clk 0:02:16.3]} 6. cxd5 {[%clk 0:03:06.9]} 6... Qxd5 {[%clk 0:02:18.2]} 7.
Nc3 {[%clk 0:03:07.8]} 7... Qd8 {[%clk 0:02:17.6]} 8. g3 {[%clk 0:03:07.4]} 8...
c6 {[%clk 0:02:18.6]} 9. Bg2 {[%clk 0:03:08.2]} 9... Bb4 {[%clk 0:02:19.5]} 10.
Nf3 {[%clk 0:03:06.7]} 10... O-O {[%clk 0:02:19.9]} 11. O-O {[%clk 0:03:07.3]}
11... f5 {[%clk 0:02:21.1]} 12. Qc2 {[%clk 0:03:06.8]} 12... Nd7 {[%clk
0:02:20.2]} 13. d4 {[%clk 0:03:06.5]} 13... Qe7 {[%clk 0:02:10.9]} 14. e3 {[%clk
0:03:06.6]} 14... Nf6 {[%clk 0:02:09.5]} 15. Ne5 {[%clk 0:03:04.4]} 15... Be6
{[%clk 0:02:08.5]} 16. Na2 {[%clk 0:02:58.9]} 16... Bd6 {[%clk 0:02:08.9]} 17.
Nc4 {[%clk 0:02:59.6]} 17... Bc7 {[%clk 0:02:10.3]} 18. Nc3 {[%clk 0:02:58.1]}
18... Rfd8 {[%clk 0:02:10]} 19. Rfd1 {[%clk 0:02:58.5]} 19... h5 {[%clk
0:02:09.8]} 20. h4 {[%clk 0:02:59.1]} 20... Rd7 {[%clk 0:02:10.3]} 21. Rd2
{[%clk 0:02:48.1]} 21... Rad8 {[%clk 0:02:10.9]} 22. Rad1 {[%clk 0:02:49.2]}
22... Qb4 {[%clk 0:01:37.6]} 23. Na2 {[%clk 0:02:48.8]} 23... Qe7 {[%clk
0:01:38.6]} 24. Nc3 {[%clk 0:02:41.7]} 24... Qb4 {[%clk 0:01:38.8]} 25. Na2
{[%clk 0:02:42.6]} 25... Qe7 {[%clk 0:01:40.3]} 26. Bf3 {[%clk 0:02:43.8]} 26...
Kg7 {[%clk 0:01:40.3]} 27. Kg2 {[%clk 0:02:44.6]} 27... Nd5 {[%clk 0:01:39.4]}
28. Nc3 {[%clk 0:02:39.3]} 28... Nb4 {[%clk 0:01:40.5]} 29. Qb2 {[%clk 0:02:37]}
29... Qf6 {[%clk 0:01:41.7]} 30. Na2 {[%clk 0:02:36.4]} 30... Nxa2 {[%clk
0:01:33.2]} 31. Qxa2 {[%clk 0:02:37.4]} 31... Kh7 {[%clk 0:01:23.3]} 32. Qc2
{[%clk 0:02:38]} 32... Kh6 {[%clk 0:01:21.9]} 33. Qc3 {[%clk 0:02:39]} 33... Bd5
{[%clk 0:01:13.6]} 34. Nxa5 {[%clk 0:02:34]} 34... Bxf3+ {[%clk 0:01:14.6]} 35.
Kxf3 {[%clk 0:02:35.5]} 35... Qe6 {[%clk 0:01:15.9]} 36. Nc4 {[%clk 0:02:23.9]}
36... f4 {[%clk 0:01:14.9]} 37. exf4 {[%clk 0:02:15.2]} 37... Qg4+ {[%clk
0:01:08.6]} 38. Kg2 {[%clk 0:02:13.9]} 38... Bxf4 {[%clk 0:01:10.2]} 39. Rd3
{[%clk 0:02:04.4]} 39... Bc7 {[%clk 0:01:10.7]} 40. Qd2+ {[%clk 0:01:48.2]}
40... Kh7 {[%clk 0:01:11.2]} 41. Qe3 {[%clk 0:01:49]} 41... Qf5 {[%clk
0:01:06.5]} 42. Qf3 {[%clk 0:01:44.8]} 42... Qg4 {[%clk 0:01:04.9]} 43. Qxg4
{[%clk 0:01:45.1]} 43... hxg4 {[%clk 0:01:06.8]} 44. Ne3 {[%clk 0:01:43.4]}
44... f5 {[%clk 0:01:07.9]} 45. f3 {[%clk 0:01:40]} 45... gxf3+ {[%clk
0:01:07.9]} 46. Kxf3 {[%clk 0:01:41.9]} 46... Bb6 {[%clk 0:01:09.3]} 47. Nc2
{[%clk 0:01:39.1]} 47... Kg7 {[%clk 0:01:09.5]} 48. Re1 {[%clk 0:01:40.1]} 48...
Kf7 {[%clk 0:01:06.1]} 49. Red1 {[%clk 0:01:38]} 49... Kf6 {[%clk 0:01:02.4]}
50. b4 {[%clk 0:01:35.2]} 50... Re7 {[%clk 0:00:59.1]} 51. Re3 {[%clk
0:01:34.2]} 51... Rxe3+ {[%clk 0:00:58.5]} 52. Kxe3 {[%clk 0:01:35.3]} 52...
Re8+ {[%clk 0:01:00]} 53. Kf3 {[%clk 0:01:34.7]} 53... Re4 {[%clk 0:01:00.8]}
54. a5 {[%clk 0:01:32.1]} 54... Bc7 {[%clk 0:01:02]} 55. Re1 {[%clk 0:01:24.1]}
55... Rg4 {[%clk 0:00:59.8]} 56. Rg1 {[%clk 0:01:22.3]} 56... Re4 {[%clk
0:01:00.7]} 57. Re1 {[%clk 0:01:21.6]} 57... Rg4 {[%clk 0:01:01.6]} 58. Rg1
{[%clk 0:01:22.4]} 58... Re4 {[%clk 0:01:03.1]} 59. g4 {[%clk 0:01:20.4]} 59...
Rf4+ {[%clk 0:01:03]} 60. Ke3 {[%clk 0:01:21.3]} 60... fxg4 {[%clk 0:01:04.4]}
61. Ne1 {[%clk 0:01:18.7]} 61... Kf5 {[%clk 0:01:02.7]} 62. Nd3 {[%clk
0:01:08.3]} 62... Re4+ {[%clk 0:01:03.5]} 63. Kd2 {[%clk 0:01:03.4]} 63... Rxd4
{[%clk 0:01:04.5]} 64. Kc3 {[%clk 0:01:04.3]} 64... Re4 {[%clk 0:01:05.2]} 65.
Rf1+ {[%clk 0:01:03.6]} 65... Bf4 {[%clk 0:01:03.9]} 66. Nc5 {[%clk 0:01:02.5]}
66... Re3+ {[%clk 0:01:03.8]} 67. Kd4 {[%clk 0:01:03.2]} 67... Re7 {[%clk
0:01:02.8]} 68. Nd3 {[%clk 0:01:02.9]} 68... Re4+ {[%clk 0:01:03.9]} 69. Kc5
{[%clk 0:01:03]} 69... g3 {[%clk 0:01:05.8]} 70. Kb6 {[%clk 0:01:03.7]} 70... g2
{[%clk 0:01:06.5]} 71. Rg1 {[%clk 0:01:04.9]} 71... Be3+ {[%clk 0:01:07.9]} 72.
Kxb7 {[%clk 0:01:05]} 72... Bxg1 {[%clk 0:01:09.8]} 73. Nc5 {[%clk 0:01:00.8]}
73... Rxb4+ {[%clk 0:01:09.8]} 0-1

[Event "*** Titled Tuesday Blitz"]
[Site "Chess.com"]
[Date "2018.05.01"]
[Round "4"]
[White "Khamrakulov_Djurabek"]
[Black "Hrant_ChessMood"]
[Result "1-0"]
[WhiteElo "2659"]
[BlackElo "2819"]
[TimeControl "180+2"]
[EndTime "13:53:23 PDT"]
[Termination "Khamrakulov_Djurabek won on time"]

1. e4 {[%clk 0:03:01.9]} 1... c6 {[%clk 0:02:56.2]} 2. Nc3 {[%clk 0:03:01.3]}
2... d5 {[%clk 0:02:57.5]} 3. Nf3 {[%clk 0:03:02.5]} 3... dxe4 {[%clk
0:02:58.7]} 4. Nxe4 {[%clk 0:03:03.2]} 4... Nf6 {[%clk 0:03:00.3]} 5. Nxf6+
{[%clk 0:03:03.9]} 5... exf6 {[%clk 0:03:02.2]} 6. d4 {[%clk 0:03:04.2]} 6...
Bd6 {[%clk 0:03:02.3]} 7. Qe2+ {[%clk 0:03:04]} 7... Qe7 {[%clk 0:02:58.9]} 8.
Qxe7+ {[%clk 0:03:04.2]} 8... Kxe7 {[%clk 0:03:00.8]} 9. Be2 {[%clk 0:02:56.2]}
9... Be6 {[%clk 0:03:00.6]} 10. O-O {[%clk 0:02:55.3]} 10... Re8 {[%clk
0:02:52.1]} 11. Re1 {[%clk 0:02:41.3]} 11... Na6 {[%clk 0:02:41]} 12. c3 {[%clk
0:02:41.9]} 12... Nc7 {[%clk 0:02:39.3]} 13. Bd2 {[%clk 0:02:38.1]} 13... a5
{[%clk 0:02:38.1]} 14. c4 {[%clk 0:02:33]} 14... Kd7 {[%clk 0:02:13.2]} 15. b3
{[%clk 0:02:12.8]} 15... Bf5 {[%clk 0:01:48.2]} 16. Nh4 {[%clk 0:02:09]} 16...
Be6 {[%clk 0:01:48.6]} 17. f4 {[%clk 0:02:02.2]} 17... Kd8 {[%clk 0:01:36.7]}
18. Bd3 {[%clk 0:02:01.2]} 18... g6 {[%clk 0:01:35.2]} 19. f5 {[%clk 0:01:50.6]}
19... Bd7 {[%clk 0:01:36.2]} 20. Rxe8+ {[%clk 0:01:47.3]} 20... Nxe8 {[%clk
0:01:30.8]} 21. a4 {[%clk 0:01:46.3]} 21... g5 {[%clk 0:01:11.4]} 22. Nf3 {[%clk
0:01:45.8]} 22... h5 {[%clk 0:01:12.9]} 23. h3 {[%clk 0:01:32.9]} 23... h4
{[%clk 0:01:10.6]} 24. Nh2 {[%clk 0:01:30.6]} 24... Ng7 {[%clk 0:01:03.7]} 25.
Rf1 {[%clk 0:01:30]} 25... Nh5 {[%clk 0:01:01.6]} 26. Ng4 {[%clk 0:01:30.2]}
26... Kc7 {[%clk 0:01:00.7]} 27. Re1 {[%clk 0:01:20.4]} 27... b6 {[%clk
0:01:00.1]} 28. d5 {[%clk 0:01:11.9]} 28... cxd5 {[%clk 0:00:56.9]} 29. cxd5
{[%clk 0:01:12.8]} 29... Kb7 {[%clk 0:00:54]} 30. Bc3 {[%clk 0:01:12.3]} 30...
Rc8 {[%clk 0:00:42.2]} 31. Bb2 {[%clk 0:01:01.5]} 31... Ng3 {[%clk 0:00:30.8]}
32. Nxf6 {[%clk 0:00:59.3]} 32... Bxf5 {[%clk 0:00:29.4]} 33. Bxf5 {[%clk
0:00:52.4]} 33... Nxf5 {[%clk 0:00:31.3]} 34. Ne4 {[%clk 0:00:52.1]} 34... Bf4
{[%clk 0:00:32]} 35. Bf6 {[%clk 0:00:50.5]} 35... Rg8 {[%clk 0:00:21.8]} 36. Kf2
{[%clk 0:00:51.2]} 36... Kc7 {[%clk 0:00:10]} 37. Kf3 {[%clk 0:00:50.9]} 37...
Kd7 {[%clk 0:00:11]} 38. Bb2 {[%clk 0:00:35]} 38... Rg6 {[%clk 0:00:11.6]} 39.
Nf6+ {[%clk 0:00:34.4]} 39... Kc7 {[%clk 0:00:11.3]} 40. Re8 {[%clk 0:00:32.7]}
40... Bd6 {[%clk 0:00:05.7]} 41. Rh8 {[%clk 0:00:26]} 41... Ne7 {[%clk
0:00:06.6]} 42. Rh7 {[%clk 0:00:25.7]} 42... Kd8 {[%clk 0:00:02.1]} 43. Rxf7
{[%clk 0:00:26.5]} 43... Bc5 {[%clk 0:00:03.3]} 44. Rf8+ {[%clk 0:00:23.3]}
44... Kc7 {[%clk 0:00:02.9]} 45. Be5+ {[%clk 0:00:24.9]} 45... Kb7 {[%clk
0:00:04.2]} 46. Rf7 {[%clk 0:00:25.1]} 46... Ka6 {[%clk 0:00:03.8]} 47. d6
{[%clk 0:00:26.3]} 47... Nc6 {[%clk 0:00:04.5]} 48. Ke4 {[%clk 0:00:26]} 48...
g4 {[%clk 0:00:04.4]} 49. hxg4 {[%clk 0:00:26.2]} 49... Rg5 {[%clk 0:00:05.5]}
50. Bf4 {[%clk 0:00:26]} 50... Rg6 {[%clk 0:00:04.4]} 51. d7 {[%clk 0:00:25.6]}
1-0

[Event "*** Titled Tuesday Blitz"]
[Site "Chess.com"]
[Date "2018.05.01"]
[Round "4"]
[White "Rokis13"]
[Black "abubakrtagelsir"]
[Result "0-1"]
[WhiteElo "2441"]
[BlackElo "2350"]
[TimeControl "180+2"]
[EndTime "13:53:23 PDT"]
[Termination "abubakrtagelsir won by resignation"]

1. e4 {[%clk 0:03:01.9]} 1... d6 {[%clk 0:02:59]} 2. d4 {[%clk 0:03:02]} 2...
Nf6 {[%clk 0:02:59.5]} 3. Nc3 {[%clk 0:03:02.4]} 3... g6 {[%clk 0:02:59.4]} 4.
Be3 {[%clk 0:03:03]} 4... c6 {[%clk 0:02:59.7]} 5. h3 {[%clk 0:03:03.6]} 5...
Bg7 {[%clk 0:02:59.4]} 6. Bd3 {[%clk 0:03:04.2]} 6... O-O {[%clk 0:03:00.3]} 7.
Qd2 {[%clk 0:03:04.1]} 7... Nbd7 {[%clk 0:02:59.6]} 8. Nge2 {[%clk 0:03:01.8]}
8... b5 {[%clk 0:03:00]} 9. O-O {[%clk 0:03:01]} 9... Nb6 {[%clk 0:03:00.3]} 10.
f4 {[%clk 0:02:59.4]} 10... Nc4 {[%clk 0:02:55.3]} 11. Bxc4 {[%clk 0:02:59.8]}
11... bxc4 {[%clk 0:02:56]} 12. e5 {[%clk 0:03:01.2]} 12... Nd5 {[%clk
0:02:56.2]} 13. Ng3 {[%clk 0:02:55.1]} 13... Rb8 {[%clk 0:02:55.6]} 14. Rab1
{[%clk 0:02:55.5]} 14... e6 {[%clk 0:02:55.3]} 15. Nge4 {[%clk 0:02:52.8]} 15...
Nxe3 {[%clk 0:02:54.4]} 16. Qxe3 {[%clk 0:02:52.7]} 16... d5 {[%clk 0:02:53.4]}
17. Nd6 {[%clk 0:02:33.2]} 17... Qc7 {[%clk 0:02:52.5]} 18. g4 {[%clk
0:02:31.6]} 18... Rd8 {[%clk 0:02:45.2]} 19. f5 {[%clk 0:02:30.1]} 19... exf5
{[%clk 0:02:33.1]} 20. gxf5 {[%clk 0:02:32]} 20... Rxd6 {[%clk 0:02:25.3]} 21.
exd6 {[%clk 0:02:30.3]} 21... Qxd6 {[%clk 0:02:26]} 22. Qe8+ {[%clk 0:02:24.8]}
22... Bf8 {[%clk 0:02:19]} 23. Qe5 {[%clk 0:02:21]} 23... Qxe5 {[%clk
0:02:15.8]} 24. dxe5 {[%clk 0:02:22.9]} 24... Bxf5 {[%clk 0:02:16.7]} 25. Rxf5
{[%clk 0:01:44.6]} 25... gxf5 {[%clk 0:02:16.4]} 26. b3 {[%clk 0:01:46.1]} 26...
Bc5+ {[%clk 0:02:12.7]} 27. Kg2 {[%clk 0:01:46]} 27... cxb3 {[%clk 0:02:13.7]}
28. axb3 {[%clk 0:01:46.7]} 28... Bd4 {[%clk 0:02:14.1]} 29. Ne2 {[%clk
0:01:44.4]} 29... Bxe5 {[%clk 0:02:14.9]} 30. Rf1 {[%clk 0:01:46]} 30... f4
{[%clk 0:02:09.6]} 31. Nxf4 {[%clk 0:01:45.9]} 31... Bxf4 {[%clk 0:02:10.2]} 32.
Rxf4 {[%clk 0:01:47.8]} 32... Rb6 {[%clk 0:02:03.3]} 33. Rf5 {[%clk 0:01:42.4]}
33... Kg7 {[%clk 0:02:03.4]} 34. Kf3 {[%clk 0:01:43.3]} 34... Rb4 {[%clk
0:01:59.6]} 35. Re5 {[%clk 0:01:42]} 35... Kf6 {[%clk 0:01:53.7]} 36. Rh5 {[%clk
0:01:41.5]} 36... Kg6 {[%clk 0:01:53.9]} 37. Re5 {[%clk 0:01:42.6]} 37... h5
{[%clk 0:01:51.4]} 38. Re7 {[%clk 0:01:43]} 38... a5 {[%clk 0:01:46.5]} 39. Rc7
{[%clk 0:01:42.5]} 39... Rb6 {[%clk 0:01:46.2]} 40. Ra7 {[%clk 0:01:43.5]} 40...
Rb5 {[%clk 0:01:46.7]} 41. Ke3 {[%clk 0:01:36.8]} 41... f6 {[%clk 0:01:39.3]}
42. Ra6 {[%clk 0:01:31.1]} 42... c5 {[%clk 0:01:35.6]} 43. Rd6 {[%clk
0:01:29.8]} 43... c4 {[%clk 0:01:34.7]} 44. bxc4 {[%clk 0:01:29.6]} 44... dxc4
{[%clk 0:01:35.2]} 45. Ra6 {[%clk 0:01:29.3]} 45... Rb2 {[%clk 0:01:25.6]} 46.
Kd2 {[%clk 0:01:29.3]} 46... Ra2 {[%clk 0:01:25.9]} 47. Rc6 {[%clk 0:01:27.7]}
47... Ra4 {[%clk 0:01:25.2]} 48. Rc5 {[%clk 0:01:25.7]} 48... h4 {[%clk
0:01:23.6]} 49. Rc8 {[%clk 0:01:22]} 49... Ra3 {[%clk 0:01:18.8]} 50. c3 {[%clk
0:01:19.2]} 50... Ra2+ {[%clk 0:01:17.8]} 51. Ke3 {[%clk 0:01:20.5]} 51... Rh2
{[%clk 0:01:18.4]} 52. Rxc4 {[%clk 0:01:21.5]} 52... Rxh3+ {[%clk 0:01:19]} 53.
Kf4 {[%clk 0:01:22.8]} 53... Rg3 {[%clk 0:01:18.5]} 54. Ra4 {[%clk 0:01:14]}
54... Rg5 {[%clk 0:01:18.9]} 55. Kf3 {[%clk 0:01:12.2]} 55... h3 {[%clk
0:01:19.1]} 56. Rh4 {[%clk 0:00:57.4]} 56... Rh5 {[%clk 0:01:15.9]} 57. Rg4+
{[%clk 0:00:58.5]} 57... Kf5 {[%clk 0:01:14]} 58. Rg1 {[%clk 0:00:59.1]} 58...
h2 {[%clk 0:01:14.9]} 59. Rh1 {[%clk 0:01:00.4]} 59... a4 {[%clk 0:01:16.2]} 60.
c4 {[%clk 0:01:00.7]} 60... a3 {[%clk 0:01:16.2]} 61. c5 {[%clk 0:01:01.9]}
61... a2 {[%clk 0:01:16.7]} 62. c6 {[%clk 0:01:03.2]} 62... Ke6 {[%clk
0:01:17.6]} 63. Kg2 {[%clk 0:00:59.4]} 63... Kd6 {[%clk 0:01:15]} 64. Rd1+
{[%clk 0:00:59.5]} 64... Kxc6 {[%clk 0:01:15]} 65. Kh1 {[%clk 0:01:01.4]} 65...
Rb5 {[%clk 0:01:07.3]} 66. Kxh2 {[%clk 0:01:01]} 66... Rb1 {[%clk 0:01:06.4]}
0-1

[Event "*** Titled Tuesday Blitz"]
[Site "Chess.com"]
[Date "2018.05.01"]
[Round "4"]
[White "Too_Stupid_To_Play"]
[Black "PowerThinking2650"]
[Result "1-0"]
[WhiteElo "2194"]
[BlackElo "2278"]
[TimeControl "180+2"]
[EndTime "13:53:24 PDT"]
[Termination "Too_Stupid_To_Play won by checkmate"]

1. b4 {[%clk 0:02:58.9]} 1... e5 {[%clk 0:02:59.5]} 2. Bb2 {[%clk 0:03:00.4]}
2... Bxb4 {[%clk 0:02:59.6]} 3. Bxe5 {[%clk 0:03:01.9]} 3... Nf6 {[%clk
0:02:58.9]} 4. Nc3 {[%clk 0:03:03.5]} 4... c6 {[%clk 0:02:55.7]} 5. Rb1 {[%clk
0:03:03.8]} 5... Ba5 {[%clk 0:02:45.9]} 6. Bd6 {[%clk 0:03:02.9]} 6... Bc7
{[%clk 0:02:42.8]} 7. Bxc7 {[%clk 0:02:51.5]} 7... Qxc7 {[%clk 0:02:44.6]} 8. e4
{[%clk 0:02:52.6]} 8... O-O {[%clk 0:02:42]} 9. Bd3 {[%clk 0:02:43.8]} 9... Re8
{[%clk 0:02:41.2]} 10. Nge2 {[%clk 0:02:44.4]} 10... d5 {[%clk 0:02:30.6]} 11.
exd5 {[%clk 0:02:43.7]} 11... cxd5 {[%clk 0:02:31.2]} 12. O-O {[%clk 0:02:37.6]}
12... Nc6 {[%clk 0:02:25.4]} 13. Ng3 {[%clk 0:02:05.6]} 13... a6 {[%clk
0:02:22.4]} 14. Nh5 {[%clk 0:02:04]} 14... Ng4 {[%clk 0:02:01.9]} 15. g3 {[%clk
0:01:45.7]} 15... g6 {[%clk 0:02:01.2]} 16. Nxd5 {[%clk 0:01:37.7]} 16... Qe5
{[%clk 0:01:54.1]} 17. Nhf4 {[%clk 0:01:18]} 17... g5 {[%clk 0:01:14.8]} 18. Nb6
{[%clk 0:01:17.4]} 18... gxf4 {[%clk 0:01:09.6]} 19. Nxc8 {[%clk 0:01:17.5]}
19... Qh5 {[%clk 0:01:05.2]} 20. h4 {[%clk 0:00:40.5]} 20... Raxc8 {[%clk
0:01:05.6]} 21. Rxb7 {[%clk 0:00:38]} 21... Nce5 {[%clk 0:00:54.3]} 22. Be2
{[%clk 0:00:33.9]} 22... Qf5 {[%clk 0:00:39.1]} 23. d4 {[%clk 0:00:21]} 23... f3
{[%clk 0:00:40]} 24. Bxa6 {[%clk 0:00:15.1]} 24... Ng6 {[%clk 0:00:35.5]} 25.
Bd3 {[%clk 0:00:12.5]} 25... Qd5 {[%clk 0:00:33.5]} 26. Rb5 {[%clk 0:00:11.4]}
26... Qxd4 {[%clk 0:00:32.8]} 27. Qxf3 {[%clk 0:00:12.6]} 27... N4e5 {[%clk
0:00:29.3]} 28. Qf5 {[%clk 0:00:08.9]} 28... Nxd3 {[%clk 0:00:26.8]} 29. cxd3
{[%clk 0:00:10.8]} 29... Rc2 {[%clk 0:00:24.7]} 30. Rb7 {[%clk 0:00:11.2]} 30...
Rf8 {[%clk 0:00:21.5]} 31. h5 {[%clk 0:00:12.7]} 31... Qe5 {[%clk 0:00:21.4]}
32. Qg4 {[%clk 0:00:11.8]} 32... f5 {[%clk 0:00:18.3]} 33. Qd1 {[%clk
0:00:08.8]} 33... Rxa2 {[%clk 0:00:11.2]} 34. Qb3+ {[%clk 0:00:09.1]} 34... Kh8
{[%clk 0:00:10.4]} 35. Qxa2 {[%clk 0:00:08.8]} 35... Nh4 {[%clk 0:00:10.7]} 36.
f4 {[%clk 0:00:04.1]} 36... Qe3+ {[%clk 0:00:10.5]} 37. Qf2 {[%clk 0:00:04.9]}
37... Nf3+ {[%clk 0:00:10.6]} 38. Kg2 {[%clk 0:00:05.8]} 38... Qxf2+ {[%clk
0:00:10.1]} 39. Rxf2 {[%clk 0:00:06.7]} 39... Nd4 {[%clk 0:00:12]} 40. Ra2
{[%clk 0:00:06.9]} 40... Ne6 {[%clk 0:00:08.6]} 41. Raa7 {[%clk 0:00:07.4]}
41... Rd8 {[%clk 0:00:09.6]} 42. Rxh7+ {[%clk 0:00:07.9]} 42... Kg8 {[%clk
0:00:11.1]} 43. Rhd7 {[%clk 0:00:09.8]} 43... Rc8 {[%clk 0:00:11.5]} 44. Re7
{[%clk 0:00:10.2]} 44... Nf8 {[%clk 0:00:12.4]} 45. h6 {[%clk 0:00:10.9]} 45...
Rc2+ {[%clk 0:00:13]} 46. Kh3 {[%clk 0:00:11.8]} 46... Rc1 {[%clk 0:00:14.2]}
47. Kg2 {[%clk 0:00:11.2]} 47... Rd1 {[%clk 0:00:14.5]} 48. h7+ {[%clk
0:00:11.7]} 48... Kh8 {[%clk 0:00:14.8]} 49. Rf7 {[%clk 0:00:12.9]} 49... Rd2+
{[%clk 0:00:12.3]} 50. Kh3 {[%clk 0:00:14]} 50... Nxh7 {[%clk 0:00:11.3]} 51.
Ra8+ {[%clk 0:00:12.8]} 51... Nf8 {[%clk 0:00:11.6]} 52. Raxf8# {[%clk
0:00:14.1]} 1-0

[Event "*** Titled Tuesday Blitz"]
[Site "Chess.com"]
[Date "2018.05.01"]
[Round "4"]
[White "tomsishere"]
[Black "GP9isback23"]
[Result "1/2-1/2"]
[WhiteElo "2362"]
[BlackElo "2259"]
[TimeControl "180+2"]
[EndTime "13:53:32 PDT"]
[Termination "Game drawn - insufficient material"]

1. d4 {[%clk 0:03:01.9]} 1... Nf6 {[%clk 0:02:59.6]} 2. c4 {[%clk 0:03:02.6]}
2... e6 {[%clk 0:02:59.7]} 3. Nc3 {[%clk 0:03:03.2]} 3... Bb4 {[%clk 0:02:59.5]}
4. Qc2 {[%clk 0:03:04.4]} 4... O-O {[%clk 0:02:50.2]} 5. Nf3 {[%clk 0:03:05]}
5... c5 {[%clk 0:02:48.7]} 6. dxc5 {[%clk 0:03:05.7]} 6... Na6 {[%clk
0:02:48.4]} 7. g3 {[%clk 0:03:06.6]} 7... Nxc5 {[%clk 0:02:44.9]} 8. Bg2 {[%clk
0:03:08]} 8... Nce4 {[%clk 0:02:45]} 9. O-O {[%clk 0:03:07.4]} 9... Nxc3 {[%clk
0:02:43.9]} 10. bxc3 {[%clk 0:03:08.2]} 10... Be7 {[%clk 0:02:43]} 11. e4 {[%clk
0:03:09.6]} 11... d6 {[%clk 0:02:43.3]} 12. e5 {[%clk 0:03:11.1]} 12... dxe5
{[%clk 0:02:43.3]} 13. Nxe5 {[%clk 0:03:12.5]} 13... Qa5 {[%clk 0:02:44.1]} 14.
Re1 {[%clk 0:02:58.7]} 14... Nd7 {[%clk 0:02:29.4]} 15. Bf4 {[%clk 0:02:56.7]}
15... Nc5 {[%clk 0:02:18.8]} 16. Rab1 {[%clk 0:02:41.6]} 16... a6 {[%clk
0:02:02.6]} 17. Nd3 {[%clk 0:02:15.8]} 17... Nxd3 {[%clk 0:01:52.5]} 18. Qxd3
{[%clk 0:02:15.4]} 18... Rd8 {[%clk 0:01:53.9]} 19. Qc2 {[%clk 0:01:52]} 19...
Qc5 {[%clk 0:01:49.5]} 20. Be4 {[%clk 0:01:43.6]} 20... g6 {[%clk 0:01:41.6]}
21. h4 {[%clk 0:01:31.8]} 21... Qxc4 {[%clk 0:01:36.2]} 22. h5 {[%clk
0:01:32.6]} 22... f5 {[%clk 0:01:32.6]} 23. Bxb7 {[%clk 0:01:31.8]} 23... Bxb7
{[%clk 0:01:32.2]} 24. Rxb7 {[%clk 0:01:33]} 24... Bf6 {[%clk 0:01:28.1]} 25.
hxg6 {[%clk 0:01:31.3]} 25... hxg6 {[%clk 0:01:27.8]} 26. Qb3 {[%clk 0:01:20.3]}
26... Qxb3 {[%clk 0:01:17.5]} 27. axb3 {[%clk 0:01:20.1]} 27... Re8 {[%clk
0:01:08]} 28. Be5 {[%clk 0:01:20.4]} 28... Bxe5 {[%clk 0:00:56.6]} 29. Rxe5
{[%clk 0:01:21.8]} 29... a5 {[%clk 0:00:57.3]} 30. Rc5 {[%clk 0:00:59.7]} 30...
Rec8 {[%clk 0:00:51.5]} 31. Rcc7 {[%clk 0:00:42.2]} 31... Rxc7 {[%clk
0:00:51.4]} 32. Rxc7 {[%clk 0:00:42.8]} 32... a4 {[%clk 0:00:52.4]} 33. bxa4
{[%clk 0:00:42.1]} 33... Rxa4 {[%clk 0:00:52.3]} 34. Re7 {[%clk 0:00:38.9]}
34... Ra6 {[%clk 0:00:48.1]} 35. Kg2 {[%clk 0:00:37.6]} 35... Rc6 {[%clk
0:00:47.4]} 36. Kh3 {[%clk 0:00:35.6]} 36... Kf8 {[%clk 0:00:45.5]} 37. Rb7
{[%clk 0:00:32.3]} 37... g5 {[%clk 0:00:32.5]} 38. f4 {[%clk 0:00:24.4]} 38...
gxf4 {[%clk 0:00:29.3]} 39. gxf4 {[%clk 0:00:24.9]} 39... Rxc3+ {[%clk
0:00:26.6]} 40. Kh4 {[%clk 0:00:25.9]} 40... e5 {[%clk 0:00:23]} 41. fxe5 {[%clk
0:00:21.6]} 41... f4 {[%clk 0:00:21.3]} 42. Kg4 {[%clk 0:00:20.9]} 42... f3
{[%clk 0:00:20.3]} 43. Rb4 {[%clk 0:00:20.6]} 43... f2 {[%clk 0:00:20]} 44. Rf4+
{[%clk 0:00:21.5]} 44... Ke7 {[%clk 0:00:21.6]} 45. Rxf2 {[%clk 0:00:22.9]}
45... Ke6 {[%clk 0:00:22.8]} 46. Re2 {[%clk 0:00:21.8]} 46... Rc4+ {[%clk
0:00:21.7]} 47. Kg5 {[%clk 0:00:21.4]} 47... Rc5 {[%clk 0:00:22.5]} 48. Kf4
{[%clk 0:00:22.5]} 48... Rc4+ {[%clk 0:00:23.9]} 49. Kg5 {[%clk 0:00:23.6]}
49... Rc5 {[%clk 0:00:24.9]} 50. Kf4 {[%clk 0:00:23.9]} 50... Rc4+ {[%clk
0:00:26.5]} 51. Re4 {[%clk 0:00:24.6]} 51... Rc1 {[%clk 0:00:19.3]} 52. Re2
{[%clk 0:00:23.9]} 52... Rf1+ {[%clk 0:00:19.2]} 53. Ke4 {[%clk 0:00:24.5]}
53... Ra1 {[%clk 0:00:19.4]} 54. Kf4 {[%clk 0:00:21.9]} 54... Ra4+ {[%clk
0:00:20.5]} 55. Re4 {[%clk 0:00:22.6]} 55... Ra1 {[%clk 0:00:22.1]} 56. Re3
{[%clk 0:00:22.8]} 56... Rf1+ {[%clk 0:00:23.4]} 57. Ke4 {[%clk 0:00:23.8]}
57... Ra1 {[%clk 0:00:23.9]} 58. Rd3 {[%clk 0:00:24.7]} 58... Re1+ {[%clk
0:00:24.4]} 59. Re3 {[%clk 0:00:25.7]} 59... Rxe3+ {[%clk 0:00:24.9]} 60. Kxe3
{[%clk 0:00:26.7]} 60... Kxe5 {[%clk 0:00:26.3]} 1/2-1/2